bitfinex/quotes_BTCUSD_20250421
["timestamp","ask_amount","ask_price","bid_price","bid_amount"]
[1745201276735,0.60868967,87174.0,87173.0,0.48973957]
[1745201276946,0.60868967,87174.0,87173.0,0.36433537]
[1745201277170,0.60868967,87174.0,87173.0,0.51309537]
[1745201279064,0.51578967,87174.0,87173.0,0.51309537]
[1745201280516,0.51578967,87174.0,87129.0,0.060629]
[1745201280517,0.0929,87172.0,87131.0,0.004]
[1745201280716,0.16677435,87147.0,87131.0,0.004]
[1745201280917,0.16677435,87147.0,87140.0,0.14893582]
[1745201281343,0.16677435,87147.0,87140.0,0.17195664]
[1745201281894,0.11937435,87147.0,87140.0,0.17195664]
[1745201282709,0.0455,87146.0,87140.0,0.17195664]
[1745201282939,0.11944791,87145.0,87140.0,0.02315664]
[1745201283146,0.11942735,87145.0,87141.0,0.1488]
[1745201284887,0.18018876,87142.0,87141.0,0.1488]
[1745201285924,0.18896056,87142.0,87141.0,0.1488]
[1745201286721,0.01454085,87141.0,87138.0,0.0008438]
[1745201286924,0.10874085,87139.0,87138.0,0.0008438]
[1745201287119,0.10874085,87139.0,87129.0,0.209469]
[1745201287120,0.11944791,87139.0,87129.0,0.209469]
[1745201287475,0.48819917,87141.0,87129.0,0.209469]
[1745201287476,0.13398876,87130.0,87129.0,0.060629]
[1745201287685,0.13398876,87130.0,87085.0,0.0008438]
[1745201287686,0.0942,87106.0,87085.0,0.0008438]
[1745201287881,0.01454085,87095.0,87086.0,0.1496838]
[1745201288000,0.11944791,87087.0,87086.0,0.0008438]
[1745201288200,0.11944791,87087.0,87086.0,0.14981965]
[1745201288657,0.13398876,87087.0,87086.0,0.15449557]
[1745201289010,0.18018876,87087.0,87086.0,0.00565557]
[1745201289442,0.18018876,87087.0,87086.0,0.00097965]
[1745201289618,0.18018876,87087.0,87086.0,0.00568996]
[1745201290055,0.18018876,87087.0,87086.0,0.15456996]
[1745201290056,0.00813336,87087.0,87086.0,0.15456996]
[1745201290423,0.00813336,87087.0,87086.0,0.49456996]
[1745201291054,0.048,87106.0,87086.0,0.15456996]
[1745201291292,0.11944791,87105.0,87086.0,0.15556996]
[1745201291888,4e-05,87087.0,87086.0,0.15556996]
[1745201292477,4e-05,87087.0,87086.0,0.15786631]
[1745201292649,0.01454085,87122.0,87087.0,0.0454]
[1745201292824,0.11944791,87121.0,87088.0,0.00229614]
[1745201293027,0.11944791,87121.0,87088.0,0.00685764]
[1745201294270,0.11944791,87121.0,87090.0,0.2811226]
[1745201294472,0.11944791,87121.0,87091.0,0.00229597]
[1745201294675,0.11944791,87121.0,87091.0,0.34229597]
[1745201294899,0.11944791,87121.0,87092.0,0.00445003]
[1745201296257,0.11948791,87121.0,87092.0,0.00445003]
[1745201296545,0.09185741,87118.0,87092.0,0.00445003]
[1745201296757,0.11944791,87117.0,87092.0,0.00445003]
[1745201296933,0.11944791,87117.0,87087.0,0.0454]
[1745201297148,0.09185741,87106.0,87093.0,0.00443866]
[1745201297385,0.09185741,87097.0,87088.0,0.15064]
[1745201297555,0.11944791,87096.0,87088.0,0.15064]
[1745201297724,0.11944791,87096.0,87089.0,0.00454269]
[1745201297931,0.11944791,87096.0,87089.0,0.34]
[1745201298142,0.11944791,87096.0,87090.0,0.15064]
[1745201298313,0.11944791,87096.0,87090.0,0.15524239]
[1745201303796,0.11944791,87096.0,87090.0,0.00460239]
[1745201303967,0.11944791,87096.0,87091.0,0.15064]
[1745201304323,0.11944791,87096.0,87092.0,0.00467042]
[1745201305848,0.01454085,87095.0,87093.0,0.15068]
[1745201306049,0.11944791,87094.0,87093.0,0.15068]
[1745201310951,0.12044791,87094.0,87078.0,0.98288]
[1745201311164,0.00013558,87096.0,87080.0,0.2811226]
[1745201311371,0.00013558,87096.0,87079.0,0.05079644]
[1745201311372,0.11944791,87094.0,87079.0,0.1456]
[1745201311562,0.11944791,87094.0,87078.0,0.98288]
[1745201311768,0.11944791,87094.0,87079.0,0.1456]
[1745201312000,0.01454085,87089.0,87079.0,0.1456]
[1745201312201,0.01454085,87085.0,87080.0,0.1456]
[1745201312411,0.13398876,87081.0,87080.0,0.1456]
[1745201312835,0.13398876,87081.0,87078.0,0.98288]
[1745201313010,0.09185741,87083.0,87078.0,0.98288]
[1745201313011,0.13398876,87079.0,87078.0,0.98288]
[1745201313220,0.53033052,87079.0,87078.0,0.98288]
[1745201314876,0.53033052,87079.0,87078.0,1.12852]
[1745201316280,0.55170435,87079.0,87078.0,1.12852]
[1745201318741,0.55174435,87079.0,87078.0,1.12852]
[1745201319375,0.53037052,87079.0,87078.0,1.12852]
[1745201325483,0.53037052,87079.0,87078.0,0.98288]
[1745201333501,0.01454085,87078.0,87077.0,0.14564]
[1745201333629,0.13398876,87078.0,87077.0,0.14564]
[1745201334928,0.22584617,87078.0,87068.0,0.02324978]
[1745201335106,0.22584617,87078.0,87055.0,0.0008444]
[1745201335107,0.01454085,87068.0,87055.0,0.0008444]
[1745201335354,0.22584617,87069.0,87055.0,0.0008444]
[1745201335355,0.13398876,87058.0,87055.0,0.0008444]
[1745201336298,0.62603052,87058.0,87055.0,0.0008444]
[1745201336702,0.62603052,87058.0,87057.0,0.00097898]
[1745201339757,0.63442149,87058.0,87057.0,0.00097898]
[1745201342214,0.63542149,87058.0,87057.0,0.00097898]
[1745201342553,0.51678967,87058.0,87057.0,0.00097898]
[1745201343654,0.12044791,87058.0,87057.0,0.00097898]
[1745201344416,0.12044791,87058.0,87057.0,0.00197898]
[1745201352414,0.001,87058.0,87057.0,0.00197898]
[1745201354104,0.001,87058.0,87057.0,0.13773898]
[1745201355549,0.001,87058.0,87057.0,0.00197898]
[1745201355550,0.58053052,87058.0,87057.0,0.00197898]
[1745201355755,0.56598967,87058.0,87037.0,0.13576]
[1745201355942,0.01454085,87055.0,87038.0,0.47576]
[1745201356099,0.01454085,87053.0,87040.0,0.34]
[1745201356319,0.01454085,87051.0,87039.0,0.13576]
[1745201356567,0.01454085,87047.0,87039.0,0.13576]
[1745201356766,0.01454085,87045.0,87040.0,0.34]
[1745201356984,0.01454085,87043.0,87040.0,0.34]
[1745201357166,0.01454085,87041.0,87040.0,0.34]
[1745201357396,0.13398876,87041.0,87040.0,0.47576]
[1745201358791,0.13398876,87041.0,87025.0,0.02841327]
[1745201358991,0.01454085,87049.0,87040.0,0.13576]
[1745201359291,0.01454085,87047.0,87040.0,0.13576]
[1745201359539,0.01454085,87045.0,87040.0,0.13576]
[1745201359712,0.01454085,87043.0,87040.0,0.13576]
[1745201359888,0.01454085,87041.0,87040.0,0.13576]
[1745201360115,0.13398876,87041.0,87040.0,0.13576]
[1745201362584,0.13389581,87041.0,87040.0,0.13576]
[1745201366907,0.13389581,87041.0,87040.0,0.47576]
[1745201368972,0.13389581,87041.0,87040.0,0.13576]
[1745201370191,0.13389581,87041.0,87040.0,0.1358]
[1745201370848,0.13489581,87041.0,87040.0,0.1358]
[1745201371049,0.13389581,87041.0,87040.0,0.1358]
[1745201371246,0.13489581,87041.0,87040.0,0.1358]
[1745201373893,0.18479581,87041.0,87040.0,0.1358]
[1745201374121,0.23189581,87041.0,87040.0,0.1358]
[1745201374734,0.62823757,87041.0,87040.0,0.1358]
[1745201375418,0.62823757,87041.0,87025.0,0.02853734]
[1745201375419,0.66791791,87041.0,87029.0,0.131]
[1745201375581,0.13398876,87030.0,87029.0,0.131]
[1745201375804,0.53033052,87030.0,87029.0,0.131]
[1745201376907,0.53033052,87030.0,87029.0,0.13145364]
[1745201378373,0.53033052,87030.0,87029.0,0.00045364]
[1745201378374,0.635887,87030.0,87029.0,0.00045364]
[1745201378971,0.06174085,87029.0,87003.0,0.131]
[1745201379259,0.01454085,87009.0,87005.0,0.00047964]
[1745201379479,0.01454085,87007.0,87005.0,0.00047964]
[1745201379679,0.13398876,87006.0,87005.0,0.02909157]
[1745201379895,0.13398876,87006.0,87005.0,0.00047964]
[1745201380068,0.13387428,87006.0,87005.0,0.00047964]
[1745201380268,0.13384537,87006.0,87005.0,0.00047964]
[1745201380631,0.13384537,87006.0,87005.0,0.00147964]
[1745201381830,0.0472,87026.0,87005.0,0.00147964]
[1745201382035,0.11944791,87025.0,87005.0,0.00147964]
[1745201382308,0.01454085,87024.0,87005.0,0.00147964]
[1745201382498,0.01454085,87022.0,87005.0,0.00147964]
[1745201382736,0.01454085,87020.0,87005.0,0.00147964]
[1745201382902,0.01454085,87018.0,87005.0,0.00147964]
[1745201383127,0.11944791,87017.0,87005.0,0.00147964]
[1745201396980,0.0496,87030.0,87006.0,0.1262]
[1745201397261,0.11944791,87029.0,87007.0,0.0451]
[1745201397460,0.11944791,87029.0,87008.0,0.00229828]
[1745201398024,0.11944791,87029.0,87007.0,0.0451]
[1745201398255,0.39634176,87035.0,87007.0,0.0451]
[1745201398463,0.11944791,87034.0,87007.0,0.0451]
[1745201400412,0.002,87041.0,87008.0,0.121746]
[1745201400564,0.11944791,87040.0,87009.0,0.0451]
[1745201400891,0.11944791,87040.0,87010.0,0.11944791]
[1745201402038,0.002,87041.0,87013.0,0.0451]
[1745201402227,0.002,87041.0,87015.0,0.34]
[1745201402427,0.002,87041.0,87018.0,0.0451]
[1745201402631,0.002,87041.0,87020.0,0.3851]
[1745201402843,0.09185741,87039.0,87020.0,0.3851]
[1745201403017,0.11944791,87038.0,87020.0,0.3851]
[1745201403215,0.09185741,87030.0,87014.0,0.0451]
[1745201403417,0.21130532,87030.0,87014.0,0.0451]
[1745201403882,0.21130532,87030.0,87007.0,0.34865863]
[1745201403883,0.11944791,87029.0,87008.0,0.0451]
[1745201404284,0.11944791,87029.0,87006.0,0.1262]
[1745201404463,0.11944791,87029.0,87007.0,0.34]
[1745201404637,0.0456,87028.0,87006.0,0.1262]
[1745201405063,0.01454085,87026.0,87006.0,0.1262]
[1745201405262,0.01454085,87019.0,87006.0,0.1262]
[1745201405464,0.01454085,87017.0,87006.0,0.1262]
[1745201405644,0.01454085,87015.0,87006.0,0.1262]
[1745201405800,0.11944791,87014.0,87006.0,0.1262]
[1745201408648,4e-05,87028.0,87007.0,0.34]
[1745201408814,0.11944791,87027.0,87008.0,0.0022984]
[1745201410274,0.11944791,87027.0,87007.0,0.34]
[1745201411032,0.11944791,87027.0,87008.0,0.00229829]
[1745201411834,0.11948791,87027.0,87008.0,0.00229829]
[1745201412066,4e-05,87027.0,87008.0,0.00229829]
[1745201412435,4e-05,87027.0,87008.0,0.00329829]
[1745201414950,4e-05,87027.0,87009.0,0.11944791]
[1745201415289,4e-05,87027.0,87010.0,0.34229788]
[1745201415665,4e-05,87027.0,87012.0,0.34]
[1745201418860,0.08493741,87039.0,87012.0,0.34]
[1745201419143,0.20438532,87039.0,87012.0,0.34]
[1745201421252,0.11944791,87039.0,87012.0,0.34]
[1745201421818,0.09185741,87038.0,87012.0,0.34]
[1745201425364,0.09185741,87038.0,87013.0,0.00229789]
[1745201425900,0.09185741,87038.0,87012.0,0.34]
[1745201427402,0.09185741,87038.0,87013.0,0.00229789]
[1745201429867,0.09185741,87038.0,87014.0,0.98356]
[1745201430090,0.09185741,87038.0,87015.0,0.00229789]
[1745201430864,0.09240377,87038.0,87015.0,0.00229789]
[1745201431066,0.09185741,87038.0,87015.0,0.00229789]
[1745201431419,0.09240377,87038.0,87016.0,0.00937132]
[1745201431710,0.09240377,87038.0,87017.0,0.00229789]
[1745201432118,0.09240377,87038.0,87018.0,0.00935788]
[1745201432455,0.09240377,87038.0,87019.0,0.00229789]
[1745201432832,0.07585657,87038.0,87019.0,0.00229789]
[1745201432993,0.07585657,87038.0,87020.0,0.00935788]
[1745201433199,0.07585657,87038.0,87021.0,0.00229789]
[1745201433404,0.07585657,87038.0,87022.0,0.00935788]
[1745201433603,0.07585657,87038.0,87023.0,0.00229789]
[1745201433798,0.07585657,87038.0,87015.0,0.34]
[1745201434027,0.0471,87037.0,87016.0,0.00935004]
[1745201434393,0.0471,87037.0,87017.0,0.00229789]
[1745201434653,0.0471,87037.0,87019.0,0.34]
[1745201434823,0.0471,87037.0,87020.0,0.00229789]
[1745201435280,0.0471,87037.0,87021.0,0.01031571]
[1745201435623,0.0471,87037.0,87022.0,0.00229789]
[1745201436238,0.0471,87037.0,87023.0,0.01031571]
[1745201436636,0.0471,87037.0,87024.0,0.1228]
[1745201437208,0.0471,87037.0,87025.0,0.01031571]
[1745201437382,0.0471,87037.0,87025.0,0.0126136]
[1745201438551,0.04707099,87037.0,87025.0,0.01031571]
[1745201441542,0.04707099,87037.0,87027.0,0.34]
[1745201442023,0.04707099,87037.0,87028.0,0.01029694]
[1745201443699,0.04697928,87037.0,87028.0,0.01029694]
[1745201447743,0.0451,87036.0,87028.0,0.01029694]
[1745201447942,0.10904085,87034.0,87029.0,0.1228]
[1745201448141,0.0494,87031.0,87029.0,0.1228]
[1745201448375,0.0494,87031.0,87030.0,0.01034026]
[1745201448581,0.16884791,87031.0,87030.0,0.01034026]
[1745201449300,0.16884791,87031.0,87030.0,0.13314026]
[1745201449644,0.0494,87031.0,87030.0,0.13314026]
[1745201452025,0.0494,87031.0,87030.0,0.47314026]
[1745201453019,0.16884791,87031.0,87030.0,0.47314026]
[1745201453820,0.0494,87031.0,87030.0,0.47314026]
[1745201461252,0.04994636,87031.0,87030.0,0.47314026]
[1745201463725,0.16939427,87031.0,87030.0,0.47314026]
[1745201470941,0.16939427,87031.0,87030.0,0.13314026]
[1745201471150,0.18393512,87031.0,87030.0,0.12950026]
[1745201473020,0.23303512,87031.0,87030.0,0.12950026]
[1745201473266,0.01454085,87028.0,87008.0,0.98364]
[1745201473449,0.0494,87023.0,87009.0,0.11916]
[1745201473598,0.11944791,87022.0,87009.0,0.11916]
[1745201475419,0.11944791,87022.0,87010.0,0.59048312]
[1745201475813,0.11944791,87022.0,87010.0,0.34]
[1745201476781,0.0494,87021.0,87010.0,0.34]
[1745201476992,0.11944791,87020.0,87010.0,0.34]
[1745201477394,0.11944791,87020.0,87012.0,0.34]
[1745201478922,0.0491,87019.0,87012.0,0.34]
[1745201479143,0.0494,87017.0,87012.0,0.34]
[1745201479354,0.11944791,87016.0,87012.0,0.34]
[1745201479725,0.11936764,87016.0,87012.0,0.34]
[1745201480916,0.11936764,87016.0,87013.0,0.00879726]
[1745201481337,0.12036764,87016.0,87013.0,0.00879726]
[1745201482373,0.18765741,87014.0,87013.0,0.00879726]
[1745201482574,0.30710532,87014.0,87013.0,0.00879726]
[1745201482798,0.0468,87013.0,87011.0,0.11916]
[1745201483001,0.11944791,87012.0,87011.0,0.11916]
[1745201483161,0.16624791,87012.0,87011.0,0.11916]
[1745201483583,0.22978876,87012.0,87011.0,0.11916]
[1745201485250,0.22978876,87012.0,87008.0,0.98364]
[1745201485251,0.01454085,87011.0,87008.0,0.98364]
[1745201485443,0.01454085,87009.0,87008.0,0.98364]
[1745201485601,0.18078876,87009.0,87008.0,1.1028]
[1745201487790,0.18082876,87009.0,87008.0,1.1028]
[1745201487975,0.18082876,87009.0,87008.0,1.11174387]
[1745201488353,0.18082876,87009.0,87008.0,0.00894387]
[1745201488560,0.18082876,87009.0,87008.0,0.12441322]
[1745201488756,0.18082876,87009.0,87008.0,0.11696]
[1745201488955,0.18082876,87009.0,87008.0,0.12441322]
[1745201489160,0.57717052,87009.0,87008.0,0.12441322]
[1745201489677,0.57717052,87009.0,87008.0,0.00745322]
[1745201490392,0.57717052,87009.0,86981.0,0.0044225]
[1745201490393,0.049,87000.0,86981.0,0.0044225]
[1745201490526,0.06134085,86989.0,86987.0,0.000136]
[1745201490735,0.13398876,86988.0,86987.0,0.000136]
[1745201491289,0.13553512,86988.0,86987.0,0.000136]
[1745201491505,0.18283512,86988.0,86987.0,0.000136]
[1745201494789,0.98606039,86988.0,86987.0,0.000136]
[1745201494989,0.98606039,86988.0,86981.0,0.03479172]
[1745201494990,0.01454085,86984.0,86981.0,0.03479172]
[1745201495189,0.22678876,86982.0,86981.0,0.03479172]
[1745201495395,0.62313052,86982.0,86981.0,0.03479172]
[1745201495607,0.62313052,86982.0,86981.0,0.0044225]
[1745201497394,0.62317052,86982.0,86981.0,0.0044225]
[1745201498886,0.60862967,86982.0,86981.0,0.0044225]
[1745201501223,0.62317052,86982.0,86981.0,0.0044225]
[1745201502226,0.62321052,86982.0,86981.0,0.0044225]
[1745201505879,0.60866967,86982.0,86981.0,0.0044225]
[1745201519867,0.62321052,86982.0,86981.0,0.0044225]
[1745201521271,0.62375688,86982.0,86981.0,0.0044225]
[1745201538937,0.68630075,86982.0,86981.0,0.0044225]
[1745201539110,0.62475688,86982.0,86981.0,0.0044225]
[1745201539794,0.6355043,86982.0,86981.0,0.0044225]
[1745201541485,0.62475688,86982.0,86981.0,0.0044225]
[1745201544011,0.01454085,86981.0,86970.0,0.11696]
[1745201544208,0.01454085,86979.0,86970.0,0.11696]
[1745201544418,0.01454085,86977.0,86970.0,0.11696]
[1745201544588,0.01454085,86975.0,86970.0,0.11696]
[1745201544793,0.11944791,86974.0,86970.0,0.11696]
[1745201545662,0.11944791,86974.0,86971.0,0.00472475]
[1745201546433,0.11933222,86974.0,86971.0,0.00472475]
[1745201546746,0.119303,86974.0,86971.0,0.00472475]
[1745201547399,0.119303,86974.0,86971.0,0.00572475]
[1745201548085,0.119343,86974.0,86971.0,0.00572475]
[1745201550975,4e-05,86974.0,86971.0,0.34472475]
[1745201551149,4e-05,86974.0,86973.0,0.34]
[1745201551567,4e-05,86974.0,86973.0,0.34460142]
[1745201552108,4e-05,86974.0,86973.0,0.39000142]
[1745201552513,4e-05,86974.0,86973.0,0.41690142]
[1745201555617,0.00013545,86988.0,86973.0,0.41690142]
[1745201555767,0.00013545,86988.0,86979.0,0.0454]
[1745201555964,0.09185741,86999.0,86979.0,0.0454]
[1745201556171,0.09185741,86999.0,86989.0,0.25048312]
[1745201556581,0.09185741,86999.0,86990.0,1.10112]
[1745201556781,0.09185741,86999.0,86990.0,1.10551498]
[1745201557406,0.09185741,86999.0,86991.0,1.10104]
[1745201557407,0.21130532,86999.0,86991.0,1.10104]
[1745201557752,0.0486,86997.0,86992.0,0.45684]
[1745201557931,0.11944791,86996.0,86992.0,0.45684]
[1745201558915,0.11944791,86996.0,86992.0,0.28773333]
[1745201559471,0.11944791,86996.0,86992.0,0.11684]
[1745201564699,0.11944791,86996.0,86993.0,0.34]
[1745201565756,0.11944791,86996.0,86992.0,0.11684]
[1745201566740,0.11933293,86996.0,86992.0,0.11684]
[1745201570941,0.00054636,86999.0,86992.0,0.11684]
[1745201571132,0.00054636,86999.0,86993.0,0.00229894]
[1745201572159,0.00054636,86999.0,86995.0,0.34]
[1745201572326,0.00054636,86999.0,86996.0,0.00229868]
[1745201573081,0.00054636,86999.0,86995.0,0.34]
[1745201575187,0.00054636,86999.0,86996.0,0.00229867]
[1745201575327,0.055949,87000.0,86996.0,0.00229867]
[1745201575527,0.05,87003.0,86996.0,0.00229867]
[1745201577830,0.01092,87003.0,86996.0,0.00229867]
[1745201580374,0.00104,87012.0,86996.0,0.00229867]
[1745201580575,0.00504,87009.0,86996.0,0.00229867]
[1745201583340,0.0457,87032.0,86997.0,0.11944791]
[1745201583542,0.0008448,87035.0,86998.0,0.00229785]
[1745201583750,0.0008448,87035.0,86999.0,0.11944791]
[1745201583953,0.0008448,87035.0,87000.0,0.00229775]
[1745201584127,0.0008448,87035.0,87001.0,0.11944791]
[1745201584329,0.0008448,87035.0,87002.0,0.00229775]
[1745201584504,0.0008448,87035.0,87003.0,0.11944791]
[1745201584829,0.0008448,87035.0,87004.0,0.00229775]
[1745201585167,0.0008448,87035.0,87005.0,0.11944791]
[1745201585345,0.0008448,87035.0,87006.0,0.00229775]
[1745201585547,0.0008448,87035.0,87007.0,0.11944791]
[1745201585749,0.0008448,87035.0,87008.0,0.00229775]
[1745201586058,0.0008448,87035.0,87009.0,0.11944791]
[1745201586822,0.00098087,87031.0,87010.0,0.34229778]
[1745201587024,0.00098087,87031.0,87012.0,0.34]
[1745201587229,0.00098087,87031.0,87013.0,0.00229778]
[1745201587704,0.00098087,87031.0,87012.0,0.34]
[1745201589097,0.00098087,87031.0,87013.0,0.00229778]
[1745201589916,0.00098087,87031.0,87012.0,0.34]
[1745201590922,0.0962,87027.0,87013.0,0.11664]
[1745201591473,0.0962,87027.0,86996.0,0.001]
[1745201591474,0.001,87017.0,87014.0,0.11664]
[1745201591698,0.001,87014.0,86996.0,0.001]
[1745201591899,0.001,87014.0,86997.0,0.11893839]
[1745201592100,0.001,87019.0,86997.0,0.11893839]
[1745201592306,0.001,87019.0,86997.0,0.11664]
[1745201593227,0.001,87016.0,86997.0,0.11664]
[1745201594201,0.049,87020.0,86998.0,0.34]
[1745201594202,0.001,87013.0,86998.0,0.34]
[1745201594469,0.0962,87012.0,86998.0,0.34]
[1745201595042,0.001,87008.0,86996.0,0.001]
[1745201595245,0.001,87008.0,86999.0,0.11664]
[1745201595453,0.001,87008.0,87000.0,0.45664]
[1745201595633,0.0962,87012.0,87000.0,0.11664]
[1745201595971,0.0962,87012.0,87001.0,0.00229838]
[1745201596517,0.0962,87012.0,87003.0,0.34]
[1745201597091,0.0962,87012.0,87004.0,0.00229838]
[1745201597460,0.0962,87012.0,87003.0,0.34]
[1745201597741,0.0962,87012.0,87004.0,0.00229837]
[1745201598947,0.0962,87012.0,87003.0,0.34]
[1745201599747,0.0962,87012.0,87004.0,0.00229838]
[1745201601275,0.001,87029.0,87004.0,0.00229841]
[1745201601483,0.001,87028.0,87004.0,0.00229841]
[1745201601682,0.001,87033.0,87004.0,0.00229841]
[1745201601916,0.001,87028.0,87004.0,0.00229841]
[1745201604358,0.092,87027.0,87004.0,0.00229841]
[1745201607237,0.0457,87033.0,87005.0,0.11944791]
[1745201607436,0.01244635,87035.0,87006.0,0.04889778]
[1745201607611,0.01244635,87035.0,87008.0,0.34]
[1745201607825,0.01244635,87035.0,87010.0,0.34]
[1745201608028,0.01244635,87035.0,87012.0,0.34]
[1745201608173,0.01244635,87035.0,87013.0,0.00229777]
[1745201611116,0.001,87036.0,87013.0,0.00229777]
[1745201611871,0.001,87036.0,87014.0,0.9836]
[1745201612142,0.001,87036.0,87015.0,0.00229777]
[1745201616317,0.0457,87038.0,87016.0,0.11944791]
[1745201616540,0.004,87039.0,87017.0,0.00229767]
[1745201616762,0.0499,87049.0,87018.0,0.11944791]
[1745201616978,0.0509,87049.0,87019.0,0.04539746]
[1745201617192,0.0509,87049.0,87020.0,0.11944791]
[1745201618785,0.001,87044.0,87016.0,0.0475]
[1745201618982,0.12044791,87044.0,87016.0,0.16694791]
[1745201619186,0.12044791,87044.0,87015.0,0.00880571]
[1745201619187,0.001,87036.0,87017.0,0.11644]
[1745201619624,0.0467,87042.0,87018.0,0.34]
[1745201619785,0.16834791,87041.0,87018.0,0.34]
[1745201621367,0.16834791,87041.0,87019.0,0.00229776]
[1745201624085,0.0489,87041.0,87020.0,0.11944791]
[1745201624296,0.02994729,87048.0,87022.0,0.0475]
[1745201624500,0.04894,87050.0,87022.0,0.0475]
[1745201624501,0.04894,87050.0,87023.0,0.12174536]
[1745201624722,0.39718636,87066.0,87025.0,0.0475]
[1745201624921,0.39718636,87066.0,87026.0,0.12174501]
[1745201626303,0.39718636,87066.0,87027.0,0.0475]
[1745201626498,0.12174693,87060.0,87029.0,0.34]
[1745201626903,0.12174693,87060.0,87031.0,0.34]
[1745201627541,0.0499,87059.0,87031.0,0.34]
[1745201627750,0.0489,87057.0,87031.0,0.34]
[1745201627950,0.11944791,87056.0,87031.0,0.34]
[1745201628530,0.0499,87055.0,87031.0,0.34]
[1745201628729,0.16934791,87055.0,87031.0,0.34]
[1745201630144,0.16934791,87055.0,87032.0,0.98344]
[1745201631273,0.16980131,87055.0,87032.0,0.98344]
[1745201639620,0.0463,87051.0,87033.0,0.1164]
[1745201639816,0.12174693,87050.0,87033.0,0.1164]
[1745201640708,0.0463,87049.0,87033.0,0.1164]
[1745201640897,0.12174693,87048.0,87033.0,0.1164]
[1745201645369,0.0477,87046.0,87033.0,0.1164]
[1745201645588,0.06224085,87042.0,87006.0,0.0495]
[1745201645807,0.01454085,87036.0,87010.0,0.9834]
[1745201646076,0.0477,87033.0,87010.0,0.9834]
[1745201646296,0.39634176,87045.0,87011.0,0.1162]
[1745201646297,0.01454085,87023.0,87011.0,0.1162]
[1745201646479,0.01454085,87021.0,87011.0,0.1162]
[1745201646695,0.1216511,87020.0,87011.0,0.1162]
[1745201647650,0.1216511,87020.0,87011.0,0.11633607]
[1745201650043,0.0477,87019.0,87012.0,0.34]
[1745201650245,0.12155527,87018.0,87012.0,0.34]
[1745201651264,0.0975,87017.0,87012.0,0.34]
[1745201651483,0.12155527,87016.0,87012.0,0.34]
[1745201652653,0.11944791,87016.0,87012.0,0.34]
[1745201653280,0.00210736,87015.0,87012.0,0.34]
[1745201653491,0.11944791,87014.0,87012.0,0.34]
[1745201654073,0.00210736,87013.0,87012.0,0.34]
[1745201654277,0.12155527,87013.0,87012.0,0.34]
[1745201654478,0.11944791,87013.0,87012.0,0.34]
[1745201669097,0.11944791,87013.0,87012.0,0.11624]
[1745201671117,0.11927406,87013.0,87012.0,0.11624]
[1745201678352,0.39634176,87025.0,87012.0,0.11724]
[1745201678556,0.28304176,87025.0,87013.0,0.0478]
[1745201678797,0.0499,87038.0,87014.0,0.00229804]
[1745201678928,0.11944791,87037.0,87014.0,0.00229804]
[1745201679313,0.11944791,87037.0,87013.0,0.0478]
[1745201679914,0.11944791,87037.0,87013.0,0.3878]
[1745201681582,0.048845,87055.0,87017.0,0.0965]
[1745201681761,0.000845,87055.0,87020.0,0.34]
[1745201681960,0.12029291,87055.0,87023.0,0.0487]
[1745201682162,0.12029291,87055.0,87026.0,0.0487]
[1745201682356,0.12029291,87055.0,87029.0,0.0487]
[1745201682609,0.12029291,87055.0,87030.0,0.00229738]
[1745201682821,0.12029291,87055.0,87028.0,0.19645583]
[1745201682996,0.12029291,87055.0,87029.0,0.0012429]
[1745201683207,0.12029291,87055.0,87028.0,0.31590374]
[1745201684739,0.0499,87054.0,87028.0,0.31590374]
[1745201685147,0.048,87053.0,87028.0,0.31590374]
[1745201685846,0.048,87053.0,87028.0,0.19645583]
[1745201686048,0.16744791,87053.0,87027.0,0.0264]
[1745201688543,0.000845,87055.0,87028.0,0.12069097]
[1745201689841,0.000845,87055.0,87029.0,0.0264]
[1745201689981,0.000845,87055.0,87030.0,0.12069024]
[1745201690179,0.000845,87055.0,87030.0,0.11944791]
[1745201690401,0.000845,87055.0,87030.0,0.12069026]
[1745201690793,0.0458452,87073.0,87030.0,0.12069026]
[1745201690794,0.0022706,87069.0,87035.0,0.0264]
[1745201691016,0.0008452,87073.0,87037.0,0.34]
[1745201691235,0.0008452,87073.0,87039.0,0.34]
[1745201691461,0.0008452,87073.0,87041.0,0.34]
[1745201691684,0.0008452,87073.0,87043.0,0.34]
[1745201691836,0.0008452,87073.0,87045.0,0.34]
[1745201692047,0.0008452,87073.0,87047.0,0.34]
[1745201692482,0.00129868,87072.0,87047.0,0.37883777]
[1745201693536,0.00129868,87072.0,87047.0,0.38726356]
[1745201696165,0.00129868,87072.0,87049.0,0.0264]
[1745201696365,0.00129868,87072.0,87050.0,0.00124178]
[1745201696570,0.00129868,87072.0,87051.0,0.16364791]
[1745201696804,0.00129868,87072.0,87052.0,0.00124116]
[1745201697016,0.00129868,87072.0,87053.0,0.11944791]
[1745201699080,0.00129868,87072.0,87048.0,0.37264951]
[1745201699429,0.00129868,87072.0,87049.0,0.11944791]
[1745201700193,0.00129868,87072.0,87049.0,0.49209742]
[1745201700397,0.00129868,87072.0,87049.0,0.37264951]
[1745201700398,0.21114791,87071.0,87049.0,0.37264951]
[1745201701480,0.00129868,87072.0,87050.0,0.12068972]
[1745201701712,0.04524,87079.0,87050.0,0.12068972]
[1745201701713,0.0008448,87086.0,87051.0,0.37264951]
[1745201701934,0.00013596,87075.0,87053.0,0.0331]
[1745201702088,0.00013596,87075.0,87055.0,0.0331]
[1745201702284,0.00013596,87075.0,87056.0,0.12068834]
[1745201702500,0.00013596,87075.0,87057.0,0.11596]
[1745201702701,0.00013596,87075.0,87058.0,0.12068834]
[1745201703076,0.00013596,87075.0,87059.0,0.40574951]
[1745201703281,0.00013596,87075.0,87060.0,0.11944791]
[1745201704154,0.29758261,87118.0,87062.0,0.0331]
[1745201704155,0.00070885,87091.0,87062.0,0.0331]
[1745201704377,0.09158591,87096.0,87063.0,0.49333729]
[1745201704545,0.09158591,87096.0,87064.0,0.0331]
[1745201704750,0.09158591,87096.0,87066.0,0.34]
[1745201704974,0.09158591,87096.0,87068.0,0.34]
[1745201705199,0.09158591,87096.0,87070.0,0.34]
[1745201705407,0.09158591,87096.0,87072.0,0.34]
[1745201705808,0.09158591,87096.0,87064.0,0.3731]
[1745201705957,0.09158591,87096.0,87066.0,0.34]
[1745201706167,0.09158591,87096.0,87068.0,0.34]